fUSD/lending_fUSD_20250708
["ID","MTS","AMOUNT","RATE_DAILY","PERIOD"]
[370279446,1751934668210,-1438.98,0.00032326,7]
[370279447,1751934668220,-489.25,0.00032326,7]
[370279448,1751934668230,-460.0,0.00032326,7]
[370279449,1751934668239,-387.5,0.00032326,7]
[370279450,1751934668248,-1131.95,0.00032326,7]
[370279451,1751934668258,-1131.95,0.00032326,7]
[370279452,1751934668267,-1131.95,0.00032326,7]
[370279453,1751934668276,-1131.95,0.00032326,7]
[370279454,1751934668285,-1131.95,0.00032326,7]
[370279455,1751934668295,-460.0,0.00032326,7]
[370279456,1751934668305,-460.0,0.00032326,7]
[370279457,1751934668315,-1078.36,0.00032326,7]
[370279458,1751934668325,-460.0,0.00032326,7]
[370279459,1751934668334,-460.0,0.00032326,7]
[370279460,1751934668344,-508.87,0.00032326,7]
[370279461,1751934668353,-1395.84,0.00032326,7]
[370279462,1751934668363,-460.0,0.00032326,7]
[370279463,1751934668375,-460.0,0.00032326,7]
[370279464,1751934668385,-2407.49,0.00032326,7]
[370279465,1751934668395,-862.9,0.00032326,7]
[370279466,1751934668404,-460.0,0.00032326,7]
[370279467,1751934668415,-460.0,0.00032326,7]
[370279468,1751934668424,-605.76641906,0.00032326,7]
[370279469,1751934668433,-536.42,0.00032326,7]
[370279470,1751934668445,-648.67,0.00032326,7]
[370279471,1751934668455,-460.0,0.00032326,7]
[370279472,1751934668463,-1275.91,0.00032326,7]
[370279473,1751934668473,-460.0,0.00032326,7]
[370279474,1751934668482,-16394.96,0.00032326,7]
[370279475,1751934668492,-765.21,0.00032326,7]
[370279476,1751934668501,-493.97,0.00032326,7]
[370279477,1751934668510,-460.0,0.00032326,7]
[370279478,1751934668519,-460.0,0.00032326,7]
[370279479,1751934668528,-466.75,0.00032328,7]
[370279480,1751934668537,-353.75,0.00032439,2]
[370279481,1751934668546,-151.0,0.0003249,7]
[370279482,1751934668556,-210.0,0.0003258,2]
[370279483,1751934668565,-353.75,0.00032584,2]
[370279484,1751934668574,-460.0,0.0003259,7]
[370279485,1751934668583,-405.53,0.0003259,7]
[370279486,1751934668592,-632.05,0.0003259,7]
[370279487,1751934668601,-460.0,0.0003259,7]
[370279488,1751934668610,-460.0,0.0003259,7]
[370279489,1751934668620,-460.0,0.0003259,7]
[370279490,1751934668629,-2199.3,0.0003259,7]
[370279491,1751934668638,-509.63,0.0003259,7]
[370279492,1751934668648,-1998.85,0.0003259,7]
[370279493,1751934668657,-460.0,0.00032591,7]
[370279494,1751934668666,-460.0,0.00032591,7]
[370279495,1751934668676,-460.0,0.00032597,7]
[370279496,1751934668685,-460.0,0.00032597,7]
[370279497,1751934668694,-204.25,0.00032597,7]
[370279498,1751934668704,-460.0,0.00032597,7]
[370279499,1751934668714,-460.0,0.00032597,7]
[370279500,1751934668723,-460.0,0.00032597,7]
[370279501,1751934668732,-1458.97,0.00032597,7]
[370279502,1751934668742,-576.65,0.00032597,7]
[370279503,1751934668751,-228.84636701,0.00032597,7]
[370279504,1751934668760,-554.700179,0.00032597,7]
[370279505,1751934668770,-981.098,0.00032597,7]
[370279506,1751934668779,-1084.767978,0.00032597,7]
[370279507,1751934668788,-1378.71,0.00032597,7]
[370279508,1751934668798,-460.0,0.00032599,7]
[370279509,1751934668807,-460.0,0.00032599,7]
[370279510,1751934668815,-460.0,0.00032599,7]
[370279511,1751934668825,-479.97,0.00032599,7]
[370279512,1751934668834,-460.0,0.00032599,7]
[370279513,1751934668843,-460.0,0.00032599,7]
[370279514,1751934668852,-460.0,0.00032599,7]
[370279515,1751934668861,-542.01,0.00032599,7]
[370279516,1751934668870,-460.0,0.00032599,7]
[370279517,1751934668879,-460.0,0.00032599,7]
[370279518,1751934668889,-855.33,0.00032599,7]
[370279519,1751934668898,-670.04,0.00032599,7]
[370279520,1751934668908,-460.0,0.00032599,7]
[370279521,1751934668917,-460.0,0.00032599,7]
[370279522,1751934668927,-1888.63,0.00032599,7]
[370279523,1751934668936,-460.0,0.00032599,7]
[370279524,1751934668946,-460.0,0.00032599,7]
[370279525,1751934668955,-460.0,0.00032599,7]
[370279526,1751934668964,-2806.54,0.00032599,7]
[370279527,1751934668974,-460.0,0.00032599,7]
[370279528,1751934668983,-535.94,0.00032599,7]
[370279529,1751934668992,-511.62,0.00032599,7]
[370279530,1751934669002,-959.18,0.00032599,7]
[370279531,1751934669011,-1208.55,0.00032599,7]
[370279532,1751934669020,-734.55,0.00032599,7]
[370279533,1751934669030,-460.0,0.00032599,7]
[370279534,1751934669039,-557.86,0.00032599,7]
[370279535,1751934669049,-460.0,0.00032599,7]
[370279536,1751934669058,-460.0,0.00032599,7]
[370279537,1751934669068,-528.02,0.00032599,7]
[370279538,1751934669077,-460.0,0.000326,7]
[370279539,1751934669086,-460.0,0.000326,7]
[370279540,1751934669095,-376.36,0.000326,7]
[370279541,1751934669105,-460.0,0.000326,7]
[370279542,1751934669114,-460.0,0.000326,7]
[370279543,1751934669123,-460.0,0.000326,7]
[370279544,1751934669132,-460.0,0.000326,7]
[370279545,1751934669141,-502.20211297,0.000326,7]
[370279546,1751934669150,-660.76,0.000326,7]
[370279547,1751934669159,-214.97700541,0.000326,7]
[370279548,1751934669168,-486.2297475,0.000326,7]
[370279549,1751934669178,-337.72,0.000326,7]
[370279550,1751934669187,-460.0,0.000326,7]
[370279551,1751934669196,-460.0,0.000326,7]
[370279552,1751934669206,-1638.91,0.000326,7]
[370279553,1751934669215,-460.0,0.000326,7]
[370279554,1751934669224,-460.0,0.000326,7]
[370279555,1751934669234,-460.0,0.000326,7]
[370279556,1751934669243,-460.0,0.000326,7]
[370279557,1751934669252,-460.0,0.000326,7]
[370279558,1751934669262,-460.0,0.000326,7]
[370279559,1751934669271,-894.16,0.000326,7]
[370279560,1751934669281,-765.39,0.000326,7]
[370279561,1751934669290,-497.89,0.000326,7]
[370279562,1751934669299,-706.26,0.000326,7]
[370279563,1751934669309,-698.6,0.000326,7]
[370279564,1751934669318,-460.0,0.000326,7]
[370279565,1751934669332,-460.0,0.000326,7]
[370279566,1751934669341,-460.0,0.000326,7]
[370279567,1751934669351,-311.71689262,0.000326,7]
[370279568,1751934669360,-460.0,0.000326,7]
[370279569,1751934669371,-713.17,0.000326,7]
[370279570,1751934669383,-460.0,0.000326,7]
[370279571,1751934669393,-460.0,0.000326,7]
[370279572,1751934669402,-778.28,0.000326,7]
[370279573,1751934669411,-349.31912895,0.000326,7]
[370279574,1751934669422,-460.0,0.000326,7]
[370279575,1751934669431,-2469.19,0.000326,7]
[370279576,1751934669441,-460.0,0.000326,7]
[370279577,1751934669452,-460.0,0.000326,7]
[370279578,1751934669461,-263.29,0.000326,7]
[370279579,1751934669471,-320.51,0.000326,7]
[370279580,1751934669480,-460.0,0.000326,7]
[370279581,1751934669490,-460.0,0.000326,7]
[370279582,1751934669621,-599.18,0.000326,7]
[370279583,1751934669631,-525.14,0.000326,7]
[370279584,1751934669640,-460.0,0.000326,7]
[370279585,1751934669650,-624.66,0.000326,7]
[370279586,1751934669659,-460.0,0.000326,7]
[370279587,1751934669669,-161.13,0.000326,7]
[370279588,1751934669679,-746.89,0.000326,7]
[370279589,1751934669690,-460.0,0.000326,7]
[370279590,1751934669701,-573.43,0.000326,7]
[370279591,1751934669710,-655.23,0.000326,7]
[370279592,1751934669719,-319.4,0.000326,7]
[370279593,1751934669729,-1760.16,0.000326,7]
[370279594,1751934669740,-1438.98,0.000326,7]
[370279595,1751934669751,-489.25,0.000326,7]
[370279596,1751934669761,-532.15,0.000326,7]
[370279597,1751934669770,-460.0,0.000326,7]
[370279598,1751934669780,-460.0,0.000326,7]
[370279599,1751934669790,-1078.36,0.000326,7]
[370279600,1751934669801,-460.0,0.000326,7]
[370279601,1751934669812,-460.0,0.000326,7]
[370279602,1751934669823,-1395.84,0.000326,7]
[370279603,1751934669833,-460.0,0.000326,7]
[370279604,1751934669843,-460.0,0.000326,7]
[370279605,1751934669855,-2407.49,0.000326,7]
[370279606,1751934669866,-862.9,0.000326,7]
[370279607,1751934669876,-460.0,0.000326,7]
[370279608,1751934669887,-460.0,0.000326,7]
[370279609,1751934669898,-648.67,0.000326,7]
[370279610,1751934669909,-460.0,0.000326,7]
[370279611,1751934669920,-1275.91,0.000326,7]
[370279612,1751934669929,-460.0,0.000326,7]
[370279613,1751934669940,-16394.96,0.000326,7]
[370279614,1751934669949,-765.21,0.000326,7]
[370279615,1751934669958,-493.97,0.000326,7]
[370279616,1751934669968,-460.0,0.000326,7]
[370279617,1751934669977,-460.0,0.000326,7]
[370279618,1751934669986,-466.75,0.00032602,7]
[370279619,1751934669995,-434.08649,0.00032683,2]
[370279620,1751934670006,-353.75,0.00032729,2]
[370279621,1751934670016,-460.0,0.00032864,7]
[370279622,1751934670025,-632.05,0.00032864,7]
[370279623,1751934670035,-213.53,0.00032864,7]
[370279624,1751934670044,-460.0,0.00032864,7]
[370279625,1751934670053,-460.0,0.00032864,7]
[370279626,1751934670063,-2199.3,0.00032864,7]
[370279627,1751934670072,-509.63,0.00032864,7]
[370279628,1751934670082,-1998.85,0.00032864,7]
[370279629,1751934670091,-460.0,0.00032865,7]
[370279630,1751934670100,-460.0,0.00032865,7]
[370279631,1751934670110,-460.0,0.00032871,7]
[370279632,1751934670119,-460.0,0.00032871,7]
[370279633,1751934670128,-534.51,0.00032871,7]
[370279634,1751934670138,-460.0,0.00032871,7]
[370279635,1751934670148,-224.05,0.00032871,7]
[370279636,1751934670158,-1458.97,0.00032871,7]
[370279637,1751934670168,-166.027969,0.00032871,7]
[370279638,1751934670178,-554.700179,0.00032871,7]
[370279639,1751934670189,-981.098,0.00032871,7]
[370279640,1751934670199,-1084.767978,0.00032871,7]
[370279641,1751934670208,-1378.71,0.00032871,7]
[370279642,1751934670219,-460.0,0.00032873,7]
[370279643,1751934670228,-460.0,0.00032873,7]
[370279644,1751934670237,-500.0,0.00032873,7]
[370279645,1751934670247,-261.42,0.00032873,7]
[370279646,1751934670256,-460.0,0.00032873,7]
[370279647,1751934670267,-460.0,0.00032873,7]
[370279648,1751934670277,-500.0,0.00032873,7]
[370279649,1751934670287,-460.0,0.00032873,7]
[370279650,1751934670298,-542.01,0.00032873,7]
[370279651,1751934670309,-460.0,0.00032873,7]
[370279652,1751934670320,-570.12,0.00032873,7]
[370279653,1751934670329,-460.0,0.00032873,7]
[370279654,1751934670339,-855.33,0.00032873,7]
[370279655,1751934670348,-670.04,0.00032873,7]
[370279656,1751934670358,-460.0,0.00032873,7]
[370279657,1751934670370,-166.49,0.00032873,7]
[370279658,1751934670380,-500.0,0.00032873,7]
[370279659,1751934670392,-1888.63,0.00032873,7]
[370279660,1751934670401,-590.99,0.00032873,7]
[370279661,1751934670412,-460.0,0.00032873,7]
[370279662,1751934670421,-480.46,0.00032873,7]
[370279663,1751934670431,-460.0,0.00032873,7]
[370279664,1751934670440,-460.0,0.00032873,7]
[370279665,1751934670450,-1131.95,0.00032873,7]
[370279666,1751934670459,-535.94,0.00032873,7]
[370279667,1751934670469,-511.62,0.00032873,7]
[370279668,1751934670478,-1208.55,0.00032873,7]
[370279669,1751934670488,-734.55,0.00032873,7]
[370279670,1751934670498,-188.06,0.00032873,7]
[370279671,1751934670508,-557.86,0.00032873,7]
[370279672,1751934670518,-460.0,0.00032873,7]
[370279673,1751934670528,-460.0,0.00032873,7]
[370279674,1751934670537,-353.75,0.00032874,2]
[370279675,1751934670547,-322.74498061,0.00032874,7]
[370279676,1751934670556,-460.0,0.00032874,7]
[370279677,1751934670566,-460.0,0.00032874,7]
[370279678,1751934670575,-173.18246886,0.00032874,7]
[370279679,1751934670585,-460.0,0.00032874,7]
[370279680,1751934670594,-460.0,0.00032874,7]
[370279681,1751934670604,-660.76,0.00032874,7]
[370279682,1751934670614,-460.0,0.00032874,7]
[370279683,1751934670624,-600.25,0.00032874,7]
[370279684,1751934670633,-1638.91,0.00032874,7]
[370279685,1751934670643,-460.0,0.00032874,7]
[370279686,1751934670653,-460.0,0.00032874,7]
[370279687,1751934670663,-460.0,0.00032874,7]
[370279688,1751934670672,-460.0,0.00032874,7]
[370279689,1751934670682,-460.0,0.00032874,7]
[370279690,1751934670691,-460.0,0.00032874,7]
[370279691,1751934670701,-894.16,0.00032874,7]
[370279692,1751934670710,-765.39,0.00032874,7]
[370279693,1751934670719,-706.26,0.00032874,7]
[370279694,1751934670729,-497.89,0.00032874,7]
[370279695,1751934670738,-698.6,0.00032874,7]
[370279696,1751934670747,-215.5,0.00032874,7]
[370279697,1751934670756,-460.0,0.00032874,7]
[370279698,1751934670765,-460.0,0.00032874,7]
[370279699,1751934670775,-460.0,0.00032874,7]
[370279700,1751934670785,-713.17,0.00032874,7]
[370279701,1751934670794,-460.0,0.00032874,7]
[370279702,1751934670804,-180.26,0.00032874,7]
[370279703,1751934670813,-778.28,0.00032874,7]
[370279704,1751934670822,-556.94,0.00032874,7]
[370279705,1751934670832,-2469.19,0.00032874,7]
[370279706,1751934670841,-460.0,0.00032874,7]
[370279707,1751934670850,-460.0,0.00032874,7]
[370279708,1751934670859,-460.0,0.00032874,7]
[370279709,1751934670869,-460.0,0.00032874,7]
[370279710,1751934670878,-599.18,0.00032874,7]
[370279711,1751934670889,-151.0,0.00032874,7]
[370279712,1751934670898,-525.14,0.00032874,7]
[370279713,1751934670908,-460.0,0.00032874,7]
[370279714,1751934670918,-624.66,0.00032874,7]
[370279715,1751934670927,-151.0,0.00032874,7]
[370279716,1751934670937,-460.0,0.00032874,7]
[370279717,1751934670947,-151.0,0.00032874,7]
[370279718,1751934670956,-746.89,0.00032874,7]
[370279719,1751934670966,-460.0,0.00032874,7]
[370279720,1751934670975,-573.43,0.00032874,7]
[370279721,1751934670984,-151.0,0.00032874,7]
[370279722,1751934670993,-655.23,0.00032874,7]
[370279723,1751934671003,-1760.16,0.00032874,7]
[370279724,1751934671012,-1438.98,0.00032874,7]
[370279725,1751934671021,-489.25,0.00032874,7]
[370279726,1751934671031,-460.0,0.00032874,7]
[370279727,1751934671040,-453.76,0.00032874,7]
[370279728,1751934671049,-1078.36,0.00032874,7]
[370279729,1751934671059,-460.0,0.00032874,7]
[370279730,1751934671068,-460.0,0.00032874,7]
[370279731,1751934671077,-1395.84,0.00032874,7]
[370279732,1751934671086,-416.76,0.00032874,7]
[370279733,1751934671095,-460.0,0.00032874,7]
[370279734,1751934671105,-2407.49,0.00032874,7]
[370279735,1751934671115,-151.0,0.00032874,7]
[370279736,1751934671124,-862.9,0.00032874,7]
[370279737,1751934671135,-460.0,0.00032874,7]
[370279738,1751934671144,-151.0,0.00032874,7]
[370279739,1751934671154,-248.38,0.00032874,7]
[370279740,1751934671163,-151.0,0.00032874,7]
[370279741,1751934671173,-648.67,0.00032874,7]
[370279742,1751934671183,-460.0,0.00032874,7]
[370279743,1751934671192,-1275.91,0.00032874,7]
[370279744,1751934671202,-239.37,0.00032874,7]
[370279745,1751934671212,-16394.96,0.00032874,7]
[370279746,1751934671222,-765.21,0.00032874,7]
[370279747,1751934671231,-493.97,0.00032874,7]
[370279748,1751934671241,-424.28,0.00032874,7]
[370279749,1751934671251,-460.0,0.00032874,7]
[370279750,1751934671261,-466.75,0.00032876,7]
[370279751,1751934671270,-4000.0,0.00032877,30]
[370279752,1751934671280,-509.0,0.00032889,5]
[370279753,1751934671290,-1000.0,0.00032889,2]
[370279754,1751934671299,-2173.78143212,0.00032899,2]
[370279755,1751934671308,-2000.0,0.000329,2]
[370279756,1751934671317,-153.94,0.00032966,2]
[370279757,1751934671326,-1526.16730184,0.00033003,28]
[370279758,1751934671336,-353.75,0.00033018,2]
[370279759,1751934671345,-238.31,0.00033038,30]
[370279760,1751934671355,-653.14,0.000331,14]
[370279761,1751934671364,-153.94,0.00033132,2]
[370279762,1751934671377,-460.0,0.00033138,7]
[370279763,1751934671387,-632.05,0.00033138,7]
[370279764,1751934671396,-460.0,0.00033138,7]
[370279765,1751934671406,-460.0,0.00033138,7]
[370279766,1751934671416,-2199.3,0.00033138,7]
[370279767,1751934671426,-509.63,0.00033138,7]
[370279768,1751934671435,-1998.85,0.00033138,7]
[370279769,1751934671445,-460.0,0.00033139,7]
[370279770,1751934671454,-460.0,0.00033139,7]
[370279771,1751934671464,-460.0,0.00033145,7]
[370279772,1751934671474,-460.0,0.00033145,7]
[370279773,1751934671483,-460.0,0.00033145,7]
[370279774,1751934671492,-1458.97,0.00033145,7]
[370279775,1751934671502,-1378.71,0.00033145,7]
[370279776,1751934671511,-460.0,0.00033147,7]
[370279777,1751934671521,-358.58153146,0.00033147,7]
[370279778,1751934671531,-460.0,0.00033147,7]
[370279779,1751934671540,-460.0,0.00033147,7]
[370279780,1751934671550,-229.17,0.00033147,7]
[370279781,1751934671559,-542.01,0.00033147,7]
[370279782,1751934671569,-460.0,0.00033147,7]
[370279783,1751934671578,-460.0,0.00033147,7]
[370279784,1751934671589,-855.33,0.00033147,7]
[370279785,1751934671598,-670.04,0.00033147,7]
[370279786,1751934671607,-460.0,0.00033147,7]
[370279787,1751934671617,-1888.63,0.00033147,7]
[370279788,1751934671627,-460.0,0.00033147,7]
[370279789,1751934671636,-460.0,0.00033147,7]
[370279790,1751934671646,-460.0,0.00033147,7]
[370279791,1751934671656,-535.94,0.00033147,7]
[370279792,1751934671667,-511.62,0.00033147,7]
[370279793,1751934671676,-1208.55,0.00033147,7]
[370279794,1751934671686,-734.55,0.00033147,7]
[370279795,1751934671695,-557.86,0.00033147,7]
[370279796,1751934671705,-460.0,0.00033147,7]
[370279797,1751934671714,-460.0,0.00033147,7]
[370279798,1751934671723,-460.0,0.00033148,7]
[370279799,1751934671733,-460.0,0.00033148,7]
[370279800,1751934671742,-460.0,0.00033148,7]
[370279801,1751934671751,-460.0,0.00033148,7]
[370279802,1751934671760,-660.76,0.00033148,7]
[370279803,1751934671770,-548.00597855,0.00033148,7]
[370279804,1751934671779,-1638.91,0.00033148,7]
[370279805,1751934671789,-460.0,0.00033148,7]
[370279806,1751934671798,-460.0,0.00033148,7]
[370279807,1751934671808,-460.0,0.00033148,7]
[370279808,1751934671817,-460.0,0.00033148,7]
[370279809,1751934671826,-460.0,0.00033148,7]
[370279810,1751934671836,-460.0,0.00033148,7]
[370279811,1751934671845,-894.16,0.00033148,7]
[370279812,1751934671854,-765.39,0.00033148,7]
[370279813,1751934671863,-706.26,0.00033148,7]
[370279814,1751934671872,-497.89,0.00033148,7]
[370279815,1751934671882,-698.6,0.00033148,7]
[370279816,1751934671891,-473.58434726,0.00033148,7]
[370279817,1751934671900,-434.48,0.00033148,7]
[370279818,1751934671910,-460.0,0.00033148,7]
[370279819,1751934672035,-713.17,0.00033148,7]
[370279820,1751934672044,-227.70515701,0.00033148,7]
[370279821,1751934672053,-778.28,0.00033148,7]
[370279822,1751934672062,-2469.19,0.00033148,7]
[370279823,1751934672071,-296.093544,0.00033148,7]
[370279824,1751934672081,-165.64,0.00033148,7]
[370279825,1751934672091,-243.58,0.00033148,7]
[370279826,1751934672100,-151.0,0.00033148,7]
[370279827,1751934672109,-460.0,0.00033148,7]
[370279828,1751934672119,-347.0,0.00033148,7]
[370279829,1751934672128,-599.18,0.00033148,7]
[370279830,1751934672138,-525.14,0.00033148,7]
[370279831,1751934672147,-460.0,0.00033148,7]
[370279832,1751934672156,-624.66,0.00033148,7]
[370279833,1751934672166,-460.0,0.00033148,7]
[370279834,1751934672175,-746.89,0.00033148,7]
[370279835,1751934672185,-460.0,0.00033148,7]
[370279836,1751934672194,-573.43,0.00033148,7]
[370279837,1751934672203,-655.23,0.00033148,7]
[370279838,1751934672213,-1760.16,0.00033148,7]
[370279839,1751934672223,-489.25,0.00033148,7]
[370279840,1751934672232,-1438.98,0.00033148,7]
[370279841,1751934672242,-460.0,0.00033148,7]
[370279842,1751934672252,-1078.36,0.00033148,7]
[370279843,1751934672262,-460.0,0.00033148,7]
[370279844,1751934672272,-383.41,0.00033148,7]
[370279845,1751934672282,-1395.84,0.00033148,7]
[370279846,1751934672291,-460.0,0.00033148,7]
[370279847,1751934672301,-2407.49,0.00033148,7]
[370279848,1751934672311,-862.9,0.00033148,7]
[370279849,1751934672320,-460.0,0.00033148,7]
[370279850,1751934672330,-2498.138129,0.00033148,7]
[370279851,1751934672339,-460.0,0.00033148,7]
[370279852,1751934672349,-1275.91,0.00033148,7]
[370279853,1751934672361,-648.67,0.00033148,7]
[370279854,1751934672373,-2498.138129,0.00033148,7]
[370279855,1751934672385,-765.21,0.00033148,7]
[370279856,1751934672394,-16394.96,0.00033148,7]
[370279857,1751934672403,-493.97,0.00033148,7]
[370279858,1751934672413,-495.99,0.00033148,7]
[370279859,1751934672423,-466.75,0.0003315,7]
[370279860,1751934672432,-153.94,0.00033299,2]
[370279861,1751934672441,-4000.0,0.00033313,4]
[370279862,1751934672452,-460.0,0.00033412,7]
[370279863,1751934672461,-632.05,0.00033412,7]
[370279864,1751934672471,-460.0,0.00033412,7]
[370279865,1751934672480,-460.0,0.00033412,7]
[370279866,1751934672490,-2199.3,0.00033412,7]
[370279867,1751934672499,-509.63,0.00033412,7]
[370279868,1751934672508,-1998.85,0.00033412,7]
[370279869,1751934672517,-460.0,0.00033413,7]
[370279870,1751934672527,-460.0,0.00033413,7]
[370279871,1751934672537,-408.26,0.00033419,7]
[370279872,1751934672548,-260.2,0.00033419,7]
[370279873,1751934672558,-460.0,0.00033419,7]
[370279874,1751934672567,-1458.97,0.00033419,7]
[370279875,1751934672576,-1378.71,0.00033419,7]
[370279876,1751934672585,-212.36944369,0.00033421,7]
[370279877,1751934672595,-460.0,0.00033421,7]
[370279878,1751934672604,-460.0,0.00033421,7]
[370279879,1751934672613,-542.01,0.00033421,7]
[370279880,1751934672622,-460.0,0.00033421,7]
[370279881,1751934672631,-460.0,0.00033421,7]
[370279882,1751934672640,-855.33,0.00033421,7]
[370279883,1751934672649,-670.04,0.00033421,7]
[370279884,1751934672658,-460.0,0.00033421,7]
[370279885,1751934672669,-1888.63,0.00033421,7]
[370279886,1751934672678,-460.0,0.00033421,7]
[370279887,1751934672688,-460.0,0.00033421,7]
[370279888,1751934672697,-460.0,0.00033421,7]
[370279889,1751934672706,-535.94,0.00033421,7]
[370279890,1751934672716,-511.62,0.00033421,7]
[370279891,1751934672725,-1208.55,0.00033421,7]
[370279892,1751934672734,-734.55,0.00033421,7]
[370279893,1751934672744,-557.86,0.00033421,7]
[370279894,1751934672753,-460.0,0.00033421,7]
[370279895,1751934672763,-460.0,0.00033421,7]
[370279896,1751934672773,-460.0,0.00033422,7]
[370279897,1751934672782,-460.0,0.00033422,7]
[370279898,1751934672792,-466.30169976,0.00033422,7]
[370279899,1751934672801,-397.4,0.00033422,7]
[370279900,1751934672810,-660.76,0.00033422,7]
[370279901,1751934672820,-1638.91,0.00033422,7]
[370279902,1751934672830,-460.0,0.00033422,7]
[370279903,1751934672840,-460.0,0.00033422,7]
[370279904,1751934672849,-460.0,0.00033422,7]
[370279905,1751934672859,-460.0,0.00033422,7]
[370279906,1751934672868,-231.473786,0.00033422,7]
[370279907,1751934672878,-460.0,0.00033422,7]
[370279908,1751934672888,-894.16,0.00033422,7]
[370279909,1751934672897,-765.39,0.00033422,7]
[370279910,1751934672906,-706.26,0.00033422,7]
[370279911,1751934672916,-497.89,0.00033422,7]
[370279912,1751934672926,-698.6,0.00033422,7]
[370279913,1751934672935,-460.0,0.00033422,7]
[370279914,1751934672944,-713.17,0.00033422,7]
[370279915,1751934672954,-778.28,0.00033422,7]
[370279916,1751934672963,-2469.19,0.00033422,7]
[370279917,1751934672973,-460.0,0.00033422,7]
[370279918,1751934672983,-599.18,0.00033422,7]
[370279919,1751934672992,-525.14,0.00033422,7]
[370279920,1751934673001,-460.0,0.00033422,7]
[370279921,1751934673011,-624.66,0.00033422,7]
[370279922,1751934673021,-460.0,0.00033422,7]
[370279923,1751934673030,-746.89,0.00033422,7]
[370279924,1751934673039,-460.0,0.00033422,7]
[370279925,1751934673049,-573.43,0.00033422,7]
[370279926,1751934673058,-655.23,0.00033422,7]
[370279927,1751934673068,-1760.16,0.00033422,7]
[370279928,1751934673077,-489.25,0.00033422,7]
[370279929,1751934673087,-1438.98,0.00033422,7]
[370279930,1751934673096,-460.0,0.00033422,7]
[370279931,1751934673106,-1078.36,0.00033422,7]
[370279932,1751934673116,-460.0,0.00033422,7]
[370279933,1751934673125,-1395.84,0.00033422,7]
[370279934,1751934673135,-460.0,0.00033422,7]
[370279935,1751934673145,-2407.49,0.00033422,7]
[370279936,1751934673155,-862.9,0.00033422,7]
[370279937,1751934673164,-460.0,0.00033422,7]
[370279938,1751934673174,-460.0,0.00033422,7]
[370279939,1751934673184,-1275.91,0.00033422,7]
[370279940,1751934673194,-648.67,0.00033422,7]
[370279941,1751934673203,-765.21,0.00033422,7]
[370279942,1751934673214,-16394.96,0.00033422,7]
[370279943,1751934673224,-493.97,0.00033422,7]
[370279944,1751934673233,-153.94,0.00033465,2]
[370279945,1751934673243,-210.0,0.000335,2]